[Event "18th Charleroi Open-A 2019"]
[Site "Charleroi"]
[Date "2019.08.01"]
[Round "7.23"]
[White "Verbist, Julien"]
[Black "Hafner, Christian"]
[Result "1/2-1/2"]
[ECO "B20"]
[WhiteElo "1974"]
[BlackElo "2071"]
[Annotator "NA"]
[PlyCount "40"]
[EventDate "2019.07.22"]
[EventType "swiss"]
[EventCountry "BEL"]
[SourceTitle "playchess.com"]
[Source "ChessBase"]
[SourceQuality "1"]
[TimeControl "40/5400+30:1800+30"]

1. e4 {[%emt 0:00:00]} c5 {[%emt 0:00:00]} 2. Bc4 {[%emt 0:00:00]} e6 {[%emt 0:00:18]} 3. Qe2 {[%emt 0:00:00]} Nc6 {[%emt 0:00:44]} 4. c3 {[%emt 0:00:00]} a6 {[%emt 0:02:04]} 5. d3 {[%emt 0:00:00]} Be7 {[%emt 0:01:18]} 6. Nd2 {[%emt 0:00:01]} Nf6 {[%emt 0:00:39]} 7. Ngf3 {[%emt 0:00:04]} b5 {[%emt 0:11:06]} 8. Bb3 {[%emt 0:00:10]} Bb7 {[%emt 0:00:07]} 9. Nf1 {[%emt 0:00:20]} h6 {[%emt 0:08:10]} 10. Ng3 {[%emt 0:00:23]} Qc7 {[%emt 0:02:31]} 11. O-O {[%emt 0:01:42]} O-O {[%emt 0:01:42]} 12. Rd1 {[%emt 0:00:46]} a5 {[%emt 0:03:18]} 13. Bd2 {[%emt 0:07:32]} a4 {[%emt 0:03:43]} 14. Bc2 {[%emt 0:01:00]} a3 {[%emt 0:00:14]} 15. b3 {[%emt 0:00:04]} b4 {[%emt 0:01:10]} 16. Rac1 {[%emt 0:00:22]} Qa5 {[%emt 0:06:37]} 17. Bb1 {[%emt 0:05:46]} d6 {[%emt 0:01:32]} 18. d4 {[%emt 0:03:09]} Ba6 {[%emt 0:03:07]} 19. Bd3 {[%emt 0:00:27]} Bxd3 {[%emt 0:00:59]} 20. Qxd3 {[%emt 0:00:08]} Qd8 {[%emt 0:50:41]} 1/2-1/2

[Event "18th Charleroi Open-A 2019"]
[Site "Charleroi"]
[Date "2019.08.01"]
[Round "7.24"]
[White "Roos, David"]
[Black "Godry, Clement"]
[Result "1-0"]
[ECO "B00"]
[WhiteElo "2114"]
[BlackElo "1962"]
[Annotator "NA"]
[PlyCount "53"]
[EventDate "2019.07.22"]
[EventType "swiss"]
[EventCountry "BEL"]
[SourceTitle "playchess.com"]
[Source "ChessBase"]
[SourceQuality "1"]
[TimeControl "40/5400+30:1800+30"]

1. e4 {[%emt 0:00:00]} b6 {[%emt 0:00:00]} 2. d4 {[%emt 0:00:45]} Bb7 {[%emt 0:00:04]} 3. Nc3 {[%emt 0:01:30]} e6 {[%emt 0:00:20]} 4. g3 {[%emt 0:00:52]} Nf6 {[%emt 0:00:19]} 5. Bg2 {[%emt 0:00:05]} Be7 {[%emt 0:00:20]} 6. Nge2 {[%emt 0:00:11]} d5 {[%emt 0:00:29]} 7. e5 {[%emt 0:05:12]} Nfd7 {[%emt 0:00:08]} 8. O-O {[%emt 0:03:36]} O-O {[%emt 0:00:50]} 9. f4 {[%emt 0:03:50]} c5 {[%emt 0:00:13]} 10. Be3 {[%emt 0:00:39]} Nc6 {[%emt 0:00:22]} 11. Kh1 {[%emt 0:00:12]} Rc8 {[%emt 0:02:52]} 12. g4 {[%emt 0:17:23]} Ba6 {[%emt 0:06:21]} 13. Rf3 {[%emt 0:03:11]} f6 {[%emt 0:09:59]} 14. Bg1 {[%emt 0:06:03]} cxd4 {[%emt 0:14:44]} 15. Nxd4 {[%emt 0:09:33]} Nxd4 {[%emt 0:00:16]} 16. Bxd4 {[%emt 0:00:01]} fxe5 {[%emt 0:00:23]} 17. fxe5 {[%emt 0:00:05]} Qc7 {[%emt 0:01:54]} 18. Rh3 {[%emt 0:07:38]} Bc5 {[%emt 0:17:53]} 19. g5 {[%emt 0:25:33]} Bxd4 {[%emt 0:11:21]} 20. Rxh7 {[%emt 0:09:19]} Kxh7 {[%emt 0:00:06]} 21. Qh5+ {[%emt 0:00:11]} Kg8 {[%emt 0:00:08]} 22. Nxd5 {[%emt 0:01:29]} Nf6 {[%emt 0:05:00]} 23. exf6 {[%emt 0:00:56]} exd5 {[%emt 0:00:22]} 24. Bxd5+ {[%emt 0:00:09]} Rf7 {[%emt 0:00:10]} 25. g6 {[%emt 0:01:48]} Bxf6 {[%emt 0:02:10]} 26. Re1 {[%emt 0:01:10]} Be5 {[%emt 0:03:40]} 27. Rxe5 {[%emt 0:00:03]} 1-0

[Event "18th Charleroi Open-A 2019"]
[Site "Charleroi"]
[Date "2019.08.01"]
[Round "7.25"]
[White "Vanden Bussche, Steven"]
[Black "Ramacker, Quinten"]
[Result "1-0"]
[ECO "A47"]
[WhiteElo "2061"]
[BlackElo "2006"]
[Annotator "NA"]
[PlyCount "70"]
[EventDate "2019.07.22"]
[EventType "swiss"]
[EventCountry "BEL"]
[SourceTitle "playchess.com"]
[Source "ChessBase"]
[SourceQuality "1"]
[TimeControl "40/5400+30:1800+30"]

1. d4 {[%emt 0:00:00]} Nf6 {[%emt 0:00:11]} 2. Bf4 {[%emt 0:00:00]} e6 {[%emt 0:01:27]} 3. e3 {[%emt 0:00:00]} c5 {[%emt 0:01:49]} 4. c3 {[%emt 0:00:00]} b6 {[%emt 0:01:44]} 5. Nf3 {[%emt 0:01:37]} Be7 {[%emt 0:04:03]} 6. h3 {[%emt 0:00:41]} O-O {[%emt 0:01:03]} 7. Bd3 {[%emt 0:00:25]} Ba6 {[%emt 0:03:38]} 8. O-O {[%emt 0:00:40]} cxd4 {[%emt 0:07:27]} 9. exd4 {[%emt 0:02:13]} Bxd3 {[%emt 0:00:22]} 10. Qxd3 {[%emt 0:00:06]} Nc6 {[%emt 0:01:16]} 11. Nbd2 {[%emt 0:00:07]} Rc8 {[%emt 0:02:52]} 12. Rfe1 {[%emt 0:01:34]} d5 {[%emt 0:04:19]} 13. Ne5 {[%emt 0:00:19]} Na5 {[%emt 0:13:09]} 14. Qa6 {[%emt 0:04:49]} Bd6 {[%emt 0:06:20]} 15. Bg5 {[%emt 0:11:49]} Be7 {[%emt 0:04:37]} 16. Re3 {[%emt 0:09:21]} h6 {[%emt 0:08:01]} 17. Bh4 {[%emt 0:07:02]} Qc7 {[%emt 0:03:27]} 18. Qe2 {[%emt 0:04:14]} Nc6 {[%emt 0:07:52]} 19. f4 {[%emt 0:03:11]} Nd7 {[%emt 0:04:33]} 20. Qh5 {[%emt 0:12:28]} Bxh4 {[%emt 0:05:14]} 21. Qxh4 {[%emt 0:00:06]} f5 {[%emt 0:02:51]} 22. Nxd7 {[%emt 0:05:27]} Qxd7 {[%emt 0:00:01]} 23. Rae1 {[%emt 0:00:24]} Rf6 {[%emt 0:01:09]} 24. Nf3 {[%emt 0:01:32]} Re8 {[%emt 0:00:38]} 25. Ne5 {[%emt 0:01:31]} Nxe5 {[%emt 0:00:01]} 26. Rxe5 {[%emt 0:00:41]} Qb5 {[%emt 0:00:28]} 27. Qf2 {[%emt 0:00:29]} Kf7 {[%emt 0:00:56]} 28. Kh2 {[%emt 0:00:58]} Qc4 {[%emt 0:00:57]} 29. a3 {[%emt 0:03:13]} Qd3 {[%emt 0:00:08]} 30. R5e3 {[%emt 0:01:15]} Qb5 {[%emt 0:00:17]} 31. g4 {[%emt 0:01:17]} fxg4 {[%emt 0:00:24]} 32. hxg4 {[%emt 0:00:14]} g6 {[%emt 0:01:19]} 33. R1e2 {[%emt 0:03:43]} Qc4 {[%emt 0:01:26]} 34. Qh4 {[%emt 0:03:46]} Qc7 {[%emt 0:04:40]} 35. Re5 {[%emt 0:00:23]} Kg8 {[%emt 0:01:55]} 1-0

[Event "18th Charleroi Open-A 2019"]
[Site "Charleroi"]
[Date "2019.08.01"]
[Round "7.27"]
[White "Godde, Matthias"]
[Black "De Block, Fabio"]
[Result "1/2-1/2"]
[ECO "B10"]
[WhiteElo "1989"]
[BlackElo "2039"]
[Annotator "NA"]
[PlyCount "67"]
[EventDate "2019.07.22"]
[EventType "swiss"]
[EventCountry "BEL"]
[SourceTitle "playchess.com"]
[Source "ChessBase"]
[SourceQuality "1"]
[TimeControl "40/5400+30:1800+30"]

1. e4 {[%emt 0:00:00]} c6 {[%emt 0:06:38]} 2. d3 {[%emt 0:00:00]} d5 {[%emt 0:00:10]} 3. Nd2 {[%emt 0:00:01]} e5 {[%emt 0:01:39]} 4. Ngf3 {[%emt 0:00:05]} Bd6 {[%emt 0:00:37]} 5. d4 {[%emt 0:00:08]} exd4 {[%emt 0:08:12]} 6. exd5 {[%emt 0:00:12]} cxd5 {[%emt 0:03:12]} 7. Nxd4 {[%emt 0:00:10]} Nf6 {[%emt 0:02:14]} 8. Bb5+ {[%emt 0:00:07]} Bd7 {[%emt 0:01:45]} 9. Qe2+ {[%emt 0:02:07]} Qe7 {[%emt 0:03:27]} 10. Bxd7+ {[%emt 0:00:37]} Nbxd7 {[%emt 0:01:44]} 11. Qxe7+ {[%emt 0:00:09]} Bxe7 {[%emt 0:00:26]} 12. Nf5 {[%emt 0:00:12]} Bf8 {[%emt 0:00:53]} 13. O-O {[%emt 0:01:42]} O-O-O {[%emt 0:02:41]} 14. Nf3 {[%emt 0:01:52]} h6 {[%emt 0:08:32]} 15. Bf4 {[%emt 0:06:45]} g6 {[%emt 0:08:13]} 16. N5d4 {[%emt 0:02:14]} Bc5 {[%emt 0:06:06]} 17. Rad1 {[%emt 0:12:06]} Ne4 {[%emt 0:13:39]} 18. Nb3 {[%emt 0:16:14]} g5 {[%emt 0:03:58]} 19. Nxc5 {[%emt 0:02:21]} Ndxc5 {[%emt 0:00:07]} 20. Be3 {[%emt 0:00:18]} Rhe8 {[%emt 0:02:31]} 21. Bd4 {[%emt 0:07:36]} f6 {[%emt 0:05:22]} 22. Ne1 {[%emt 0:01:06]} Nd7 {[%emt 0:05:28]} 23. f3 {[%emt 0:12:11]} Nec5 {[%emt 0:01:32]} 24. Kf2 {[%emt 0:14:59]} b6 {[%emt 0:00:59]} 25. Nd3 {[%emt 0:07:56]} Nxd3+ {[%emt 0:04:03]} 26. Rxd3 {[%emt 0:00:10]} Ne5 {[%emt 0:00:08]} 27. Bxe5 {[%emt 0:06:52]} Rxe5 {[%emt 0:01:43]} 28. Rfd1 {[%emt 0:02:02]} Kc7 {[%emt 0:00:40]} 29. c4 {[%emt 0:01:51]} Kc6 {[%emt 0:00:05]} 30. b4 {[%emt 0:00:41]} a5 {[%emt 0:04:23]} 31. a3 {[%emt 0:01:35]} axb4 {[%emt 0:00:04]} 32. axb4 {[%emt 0:00:06]} b5 {[%emt 0:00:06]} 33. c5 {[%emt 0:00:41]} Ra8 {[%emt 0:00:04]} 34. R3d2 {[%emt 0:00:38]} 1/2-1/2

[Event "18th Charleroi Open-A 2019"]
[Site "Charleroi"]
[Date "2019.08.01"]
[Round "7.28"]
[White "Miulescu, Gabriel"]
[Black "Guion, Geoffrey"]
[Result "1/2-1/2"]
[ECO "B32"]
[WhiteElo "2020"]
[BlackElo "2006"]
[Annotator "NA"]
[PlyCount "86"]
[EventDate "2019.07.22"]
[EventType "swiss"]
[EventCountry "BEL"]
[SourceTitle "playchess.com"]
[Source "ChessBase"]
[SourceQuality "1"]
[TimeControl "40/5400+30:1800+30"]

1. e4 {[%emt 0:00:00]} c5 {[%emt 0:00:00]} 2. Nf3 {[%emt 0:00:00]} Nc6 {[%emt 0:00:00]} 3. d4 {[%emt 0:00:01]} cxd4 {[%emt 0:00:00]} 4. Nxd4 {[%emt 0:00:03]} e5 {[%emt 0:00:00]} 5. Nb5 {[%emt 0:00:46]} d6 {[%emt 0:00:00]} 6. N1c3 {[%emt 0:00:23]} a6 {[%emt 0:00:12]} 7. Na3 {[%emt 0:00:12]} b5 {[%emt 0:00:17]} 8. Nd5 {[%emt 0:00:21]} Nge7 {[%emt 0:00:16]} 9. c3 {[%emt 0:01:25]} Nxd5 {[%emt 0:00:20]} 10. Qxd5 {[%emt 0:03:21]} Qc7 {[%emt 0:00:26]} 11. Be2 {[%emt 0:06:42]} Be6 {[%emt 0:00:33]} 12. Qd3 {[%emt 0:01:39]} Be7 {[%emt 0:00:33]} 13. Qg3 {[%emt 0:09:42]} O-O {[%emt 0:01:32]} 14. Bh6 {[%emt 0:04:17]} Bf6 {[%emt 0:00:40]} 15. Nc2 {[%emt 0:05:47]} Kh8 {[%emt 0:01:06]} 16. Bd2 {[%emt 0:06:58]} Ne7 {[%emt 0:08:59]} 17. O-O {[%emt 0:11:00]} d5 {[%emt 0:01:39]} 18. exd5 {[%emt 0:07:43]} Nxd5 {[%emt 0:01:38]} 19. Bf3 {[%emt 0:06:17]} Rad8 {[%emt 0:03:52]} 20. Bxd5 {[%emt 0:04:44]} Rxd5 {[%emt 0:04:00]} 21. Be3 {[%emt 0:05:19]} Be7 {[%emt 0:06:47]} 22. Nb4 {[%emt 0:04:49]} Bxb4 {[%emt 0:05:02]} 23. cxb4 {[%emt 0:00:07]} f5 {[%emt 0:01:09]} 24. Bc5 {[%emt 0:02:12]} Rfd8 {[%emt 0:01:17]} 25. Rfe1 {[%emt 0:02:54]} f4 {[%emt 0:05:32]} 26. Qc3 {[%emt 0:02:26]} h6 {[%emt 0:10:04]} 27. h3 {[%emt 0:01:59]} Bf5 {[%emt 0:01:57]} 28. f3 {[%emt 0:03:36]} Re8 {[%emt 0:03:14]} 29. Re2 {[%emt 0:04:26]} Rd3 {[%emt 0:05:47]} 30. Qe1 {[%emt 0:00:14]} Re6 {[%emt 0:04:48]} 31. Rd1 {[%emt 0:01:47]} Rxd1 {[%emt 0:04:10]} 32. Qxd1 {[%emt 0:00:02]} Qc6 {[%emt 0:10:39]} 33. Qd8+ {[%emt 0:02:03]} Kh7 {[%emt 0:00:49]} 34. Rd2 {[%emt 0:00:44]} e4 {[%emt 0:02:08]} 35. Qd5 {[%emt 0:00:20]} Qxd5 {[%emt 0:03:53]} 36. Rxd5 {[%emt 0:00:03]} e3 {[%emt 0:02:24]} 37. Rxf5 {[%emt 0:00:07]} e2 {[%emt 0:00:24]} 38. Bf2 {[%emt 0:00:04]} e1=Q+ {[%emt 0:00:05]} 39. Bxe1 {[%emt 0:00:04]} Rxe1+ {[%emt 0:00:06]} 40. Kh2 {[%emt 0:01:32]} Ra1 {[%emt 0:03:16]} 41. a3 {[%emt 0:30:40]} Ra2 {[%emt 0:31:43]} 42. Rxf4 {[%emt 0:01:30]} Rxb2 {[%emt 0:00:14]} 43. Rd4 {[%emt 0:00:32]} Rb3 {[%emt 0:00:17]} 1/2-1/2

[Event "18th Charleroi Open-A 2019"]
[Site "Charleroi"]
[Date "2019.08.01"]
[Round "7.29"]
[White "Lui, Eric"]
[Black "De Weird, Matthias"]
[Result "0-1"]
[ECO "C61"]
[WhiteElo "1884"]
[BlackElo "2009"]
[Annotator "NA"]
[PlyCount "94"]
[EventDate "2019.07.22"]
[EventType "swiss"]
[EventCountry "BEL"]
[SourceTitle "playchess.com"]
[Source "ChessBase"]
[SourceQuality "1"]
[TimeControl "40/5400+30:1800+30"]

1. e4 {[%emt 0:00:31]} e5 {[%emt 0:00:00]} 2. Nf3 {[%emt 0:00:13]} Nc6 {[%emt 0:00:00]} 3. Bb5 {[%emt 0:00:20]} Nd4 4. Nxd4 {[%emt 0:01:07]} exd4 {[%emt 0:00:00]} 5. O-O {[%emt 0:01:51]} Bc5 {[%emt 0:02:46]} 6. d3 {[%emt 0:01:25]} Ne7 {[%emt 0:00:46]} 7. Bg5 {[%emt 0:10:03]} O-O {[%emt 0:02:00]} 8. f4 {[%emt 0:04:14]} f6 {[%emt 0:00:22]} 9. Bh4 {[%emt 0:01:42]} c6 {[%emt 0:00:17]} 10. Ba4 {[%emt 0:01:09]} d5 {[%emt 0:00:15]} 11. Bb3 {[%emt 0:05:23]} Kh8 {[%emt 0:00:44]} 12. Bf2 {[%emt 0:03:33]} a5 {[%emt 0:01:09]} 13. a4 {[%emt 0:00:50]} b5 {[%emt 0:04:35]} 14. Nd2 {[%emt 0:03:38]} b4 {[%emt 0:00:23]} 15. Nf3 {[%emt 0:00:19]} Bg4 {[%emt 0:00:16]} 16. h3 {[%emt 0:00:23]} Bxf3 {[%emt 0:01:38]} 17. Qxf3 {[%emt 0:01:30]} Qd7 {[%emt 0:00:25]} 18. Rad1 {[%emt 0:03:44]} Ba7 {[%emt 0:00:38]} 19. Rfe1 {[%emt 0:03:52]} Rac8 {[%emt 0:01:03]} 20. Qh5 {[%emt 0:07:56]} g6 {[%emt 0:01:27]} 21. Qh4 {[%emt 0:02:19]} Kg7 {[%emt 0:04:36]} 22. f5 {[%emt 0:08:43]} gxf5 {[%emt 0:01:12]} 23. e5 {[%emt 0:00:11]} fxe5 24. Rxe5 {[%emt 0:01:02]} Ng6 {[%emt 0:01:16]} 25. Qg3 {[%emt 0:01:11]} f4 {[%emt 0:00:37]} 26. Qg5 {[%emt 0:00:08]} h6 {[%emt 0:00:05]} 27. Qh5 {[%emt 0:00:14]} Nxe5 28. Qxe5+ {[%emt 0:00:17]} Kh7 {[%emt 0:00:58]} 29. Rf1 {[%emt 0:03:24]} Rce8 {[%emt 0:03:21]} 30. Qh5 {[%emt 0:00:30]} f3 {[%emt 0:00:56]} 31. g4 {[%emt 0:01:12]} Qf7 {[%emt 0:01:07]} 32. Qh4 {[%emt 0:00:36]} Qf6 {[%emt 0:01:03]} 33. Qxf6 {[%emt 0:01:42]} Rxf6 {[%emt 0:00:03]} 34. c4 {[%emt 0:00:08]} dxc4 {[%emt 0:01:02]} 35. Bxc4 {[%emt 0:01:28]} Re2 {[%emt 0:00:34]} 36. b3 {[%emt 0:00:45]} Bb8 {[%emt 0:00:31]} 37. Re1 {[%emt 0:03:03]} Rxe1+ {[%emt 0:00:33]} 38. Bxe1 {[%emt 0:00:15]} Bf4 {[%emt 0:00:40]} 39. Bf2 {[%emt 0:00:28]} Be3 {[%emt 0:00:15]} 40. Ba6 {[%emt 0:01:22]} Kg6 {[%emt 0:00:15]} 41. Bc8 {[%emt 0:30:54]} Kg5 {[%emt 0:30:31]} 42. h4+ {[%emt 0:01:30]} Kf4 {[%emt 0:00:07]} 43. Kf1 {[%emt 0:00:26]} Bxf2 {[%emt 0:00:46]} 44. Kxf2 {[%emt 0:01:08]} Rf7 {[%emt 0:00:06]} 45. Bf5 {[%emt 0:00:19]} Re7 {[%emt 0:00:11]} 46. Be4 {[%emt 0:00:49]} Rxe4 {[%emt 0:00:39]} 47. dxe4 {[%emt 0:00:28]} d3 {[%emt 0:00:32]} 0-1

[Event "18th Charleroi Open-A 2019"]
[Site "Charleroi"]
[Date "2019.08.01"]
[Round "7.30"]
[White "Damlakhi, Mahmoud"]
[Black "Barbier, Astrid"]
[Result "1-0"]
[ECO "A80"]
[WhiteElo "2008"]
[BlackElo "1941"]
[Annotator "NA"]
[PlyCount "99"]
[EventDate "2019.07.22"]
[EventType "swiss"]
[EventCountry "BEL"]
[SourceTitle "playchess.com"]
[Source "ChessBase"]
[SourceQuality "1"]
[TimeControl "40/5400+30:1800+30"]

1. d4 {[%emt 0:02:13]} f5 {[%emt 0:00:00]} 2. Nc3 {[%emt 0:00:05]} Nf6 {[%emt 0:00:09]} 3. Bg5 {[%emt 0:00:05]} c6 {[%emt 0:06:46]} 4. Bxf6 {[%emt 0:04:45]} exf6 {[%emt 0:01:08]} 5. e3 {[%emt 0:01:43]} d5 {[%emt 0:02:34]} 6. Bd3 {[%emt 0:00:05]} Bb4 {[%emt 0:03:42]} 7. Qf3 {[%emt 0:00:24]} g6 {[%emt 0:05:51]} 8. Nge2 {[%emt 0:00:29]} Na6 {[%emt 0:11:24]} 9. a3 {[%emt 0:02:26]} Bd6 {[%emt 0:01:04]} 10. h3 {[%emt 0:00:05]} Nc7 {[%emt 0:04:46]} 11. g4 {[%emt 0:02:54]} fxg4 {[%emt 0:01:57]} 12. hxg4 {[%emt 0:01:48]} Kf7 {[%emt 0:00:23]} 13. O-O-O {[%emt 0:03:31]} b5 {[%emt 0:08:37]} 14. Rh4 {[%emt 0:08:35]} b4 15. axb4 {[%emt 0:00:26]} Bxb4 {[%emt 0:14:55]} 16. Rdh1 {[%emt 0:01:00]} Kg7 {[%emt 0:02:26]} 17. Qf4 {[%emt 0:08:57]} Ba6 {[%emt 0:15:13]} 18. Qh6+ {[%emt 0:01:39]} Kf7 {[%emt 0:00:36]} 19. Bxg6+ {[%emt 0:00:24]} hxg6 {[%emt 0:00:44]} 20. Qxh8 {[%emt 0:00:04]} Qxh8 {[%emt 0:00:39]} 21. Rxh8 {[%emt 0:00:05]} Rxh8 {[%emt 0:00:21]} 22. Rxh8 {[%emt 0:00:05]} Bf8 {[%emt 0:02:52]} 23. Nf4 {[%emt 0:02:31]} Kg7 {[%emt 0:00:59]} 24. Rh1 {[%emt 0:01:23]} Bc8 {[%emt 0:01:20]} 25. f3 {[%emt 0:00:32]} g5 {[%emt 0:00:43]} 26. Nh5+ {[%emt 0:01:24]} Kg6 {[%emt 0:00:20]} 27. Ng3 {[%emt 0:03:05]} Bd6 {[%emt 0:02:57]} 28. Nce2 {[%emt 0:07:38]} Nb5 {[%emt 0:01:44]} 29. Rh8 {[%emt 0:00:30]} Be6 {[%emt 0:00:36]} 30. Kd2 {[%emt 0:02:49]} Kg7 {[%emt 0:01:24]} 31. Ra8 {[%emt 0:01:57]} Kg6 {[%emt 0:00:50]} 32. Kd3 {[%emt 0:01:04]} c5 {[%emt 0:02:59]} 33. dxc5 {[%emt 0:03:05]} Bxc5 {[%emt 0:00:09]} 34. Nd4 {[%emt 0:00:11]} Nxd4 {[%emt 0:01:08]} 35. exd4 {[%emt 0:00:05]} Bb6 {[%emt 0:00:08]} 36. b3 {[%emt 0:00:16]} Bd7 {[%emt 0:01:16]} 37. Nf5 {[%emt 0:05:25]} Bxf5+ {[%emt 0:01:50]} 38. gxf5+ {[%emt 0:00:03]} Kxf5 {[%emt 0:00:06]} 39. c4 {[%emt 0:00:04]} dxc4+ {[%emt 0:01:20]} 40. bxc4 {[%emt 0:00:14]} Ke6 {[%emt 0:01:54]} 41. c5 {[%emt 0:30:18]} Bc7 {[%emt 0:31:12]} 42. Rxa7 {[%emt 0:00:13]} Bf4 {[%emt 0:00:42]} 43. Kc4 {[%emt 0:00:11]} f5 {[%emt 0:00:37]} 44. d5+ {[%emt 0:00:07]} Ke5 {[%emt 0:00:43]} 45. d6 {[%emt 0:00:50]} Ke6 {[%emt 0:00:17]} 46. Re7+ {[%emt 0:00:32]} Kf6 {[%emt 0:00:10]} 47. Kd5 {[%emt 0:00:12]} g4 {[%emt 0:00:49]} 48. fxg4 {[%emt 0:01:06]} fxg4 {[%emt 0:00:07]} 49. c6 {[%emt 0:00:10]} g3 {[%emt 0:00:59]} 50. Re2 {[%emt 0:00:06]} 1-0

[Event "18th Charleroi Open-A 2019"]
[Site "Charleroi"]
[Date "2019.08.01"]
[Round "7.31"]
[White "Dugailliez, Guy"]
[Black "Verhalle, Elias"]
[Result "1-0"]
[ECO "C45"]
[WhiteElo "2063"]
[BlackElo "1983"]
[Annotator "NA"]
[PlyCount "43"]
[EventDate "2019.07.22"]
[EventType "swiss"]
[EventCountry "BEL"]
[SourceTitle "playchess.com"]
[Source "ChessBase"]
[SourceQuality "1"]
[TimeControl "40/5400+30:1800+30"]

1. e4 {[%emt 0:00:00]} e5 {[%emt 0:00:00]} 2. Nf3 {[%emt 0:00:00]} Nc6 {[%emt 0:00:00]} 3. d4 {[%emt 0:00:00]} exd4 {[%emt 0:00:00]} 4. Nxd4 {[%emt 0:00:00]} Nf6 {[%emt 0:00:00]} 5. Nxc6 {[%emt 0:01:27]} bxc6 {[%emt 0:00:00]} 6. Bd3 {[%emt 0:01:00]} d5 {[%emt 0:11:05]} 7. e5 {[%emt 0:04:58]} Ng4 {[%emt 0:02:59]} 8. O-O {[%emt 0:00:27]} Bc5 {[%emt 0:11:59]} 9. h3 {[%emt 0:01:28]} Nxe5 {[%emt 0:03:15]} 10. Re1 {[%emt 0:01:37]} Qf6 {[%emt 0:00:50]} 11. Qe2 {[%emt 0:02:15]} O-O {[%emt 0:00:52]} 12. Qxe5 {[%emt 0:06:56]} Bxf2+ {[%emt 0:00:25]} 13. Kf1 {[%emt 0:01:09]} Bxe1+ {[%emt 0:02:11]} 14. Qxf6 {[%emt 0:00:10]} gxf6 {[%emt 0:00:03]} 15. Kxe1 {[%emt 0:00:10]} c5 {[%emt 0:09:39]} 16. b3 {[%emt 0:00:46]} Re8+ {[%emt 0:00:59]} 17. Kf2 {[%emt 0:00:31]} Be6 {[%emt 0:00:18]} 18. Nd2 {[%emt 0:02:17]} Rad8 {[%emt 0:02:01]} 19. Bb5 {[%emt 0:08:58]} Bd7 {[%emt 0:01:12]} 20. Be2 {[%emt 0:00:09]} Bf5 {[%emt 0:05:24]} 21. c4 {[%emt 0:02:54]} dxc4 {[%emt 0:01:09]} 22. Nxc4 {[%emt 0:00:30]} 1-0

[Event "18th Charleroi Open-A 2019"]
[Site "Charleroi"]
[Date "2019.08.01"]
[Round "7.32"]
[White "Oupindrin, Narayanin"]
[Black "Dierckens, Sarah"]
[Result "1/2-1/2"]
[ECO "C05"]
[WhiteElo "2056"]
[BlackElo "1770"]
[Annotator "NA"]
[PlyCount "67"]
[EventDate "2019.07.22"]
[EventType "swiss"]
[EventCountry "BEL"]
[SourceTitle "playchess.com"]
[Source "ChessBase"]
[SourceQuality "1"]
[TimeControl "40/5400+30:1800+30"]

1. e4 {[%emt 0:00:00]} e6 {[%emt 0:00:00]} 2. d4 {[%emt 0:00:00]} d5 {[%emt 0:00:00]} 3. Nd2 {[%emt 0:00:30]} Nf6 {[%emt 0:00:00]} 4. Bd3 {[%emt 0:01:25]} c5 {[%emt 0:03:37]} 5. exd5 {[%emt 0:00:53]} Nxd5 {[%emt 0:05:28]} 6. Nb3 {[%emt 0:09:46]} cxd4 {[%emt 0:02:38]} 7. Bb5+ {[%emt 0:03:16]} Nd7 {[%emt 0:01:12]} 8. Nxd4 {[%emt 0:01:58]} a6 {[%emt 0:02:49]} 9. Be2 {[%emt 0:01:53]} Bc5 {[%emt 0:07:20]} 10. Ngf3 {[%emt 0:01:05]} b5 {[%emt 0:08:05]} 11. O-O {[%emt 0:03:15]} Bb7 {[%emt 0:00:34]} 12. Bg5 {[%emt 0:02:54]} Qb6 {[%emt 0:01:48]} 13. Nb3 {[%emt 0:06:20]} Bd6 {[%emt 0:02:40]} 14. a4 {[%emt 0:05:27]} h6 {[%emt 0:07:33]} 15. Bd2 {[%emt 0:06:36]} Nf4 {[%emt 0:06:26]} 16. Bxf4 {[%emt 0:07:55]} Bxf4 {[%emt 0:00:21]} 17. axb5 {[%emt 0:00:40]} axb5 {[%emt 0:05:19]} 18. Rxa8+ {[%emt 0:02:33]} Bxa8 {[%emt 0:00:05]} 19. Qd3 {[%emt 0:04:59]} Qc7 {[%emt 0:06:49]} 20. Nbd4 {[%emt 0:06:29]} O-O {[%emt 0:05:07]} 21. Nxb5 {[%emt 0:00:59]} Qb7 {[%emt 0:00:24]} 22. Qc4 {[%emt 0:04:32]} g5 {[%emt 0:01:53]} 23. Nbd4 {[%emt 0:03:03]} Ne5 {[%emt 0:10:23]} 24. Qb5 {[%emt 0:06:50]} Qxb5 {[%emt 0:06:14]} 25. Nxb5 {[%emt 0:01:55]} Rb8 {[%emt 0:03:37]} 26. Nfd4 {[%emt 0:01:38]} Nd7 {[%emt 0:01:51]} 27. b3 {[%emt 0:00:46]} Be5 {[%emt 0:01:34]} 28. Rd1 {[%emt 0:01:00]} Nc5 {[%emt 0:00:15]} 29. c4 {[%emt 0:03:34]} Bg7 {[%emt 0:00:51]} 30. b4 {[%emt 0:00:52]} Na6 {[%emt 0:00:48]} 31. Bf3 {[%emt 0:05:31]} Bxf3 {[%emt 0:01:23]} 32. Nxf3 {[%emt 0:00:09]} Nxb4 {[%emt 0:00:19]} 33. g3 {[%emt 0:00:39]} Rc8 {[%emt 0:01:17]} 34. Nd6 {[%emt 0:00:48]} 1/2-1/2

[Event "18th Charleroi Open-A 2019"]
[Site "Charleroi"]
[Date "2019.08.02"]
[Round "8.1"]
[White "Mirzoev, Azer"]
[Black "Miezis, Normunds"]
[Result "1/2-1/2"]
[ECO "A45"]
[WhiteElo "2474"]
[BlackElo "2495"]
[Annotator "ChessBase"]
[PlyCount "21"]
[EventDate "2019.07.22"]
[EventType "swiss"]
[EventCountry "BEL"]
[SourceTitle "playchess.com"]
[Source "ChessBase"]
[SourceQuality "1"]
[TimeControl "40/5400+30:1800+30"]

1. d4 {[%emt 0:01:38]} Nf6 {[%emt 0:00:00]} 2. Bf4 {[%emt 0:01:25]} c5 {[%emt 0:02:57]} 3. e3 {[%emt 0:02:59]} Qb6 {[%emt 0:03:07]} 4. Nc3 {[%emt 0:04:21]} Qxb2 {[%emt 0:06:30]} 5. Nb5 {[%emt 0:03:08]} Nd5 {[%emt 0:01:31]} 6. Rb1 {[%emt 0:02:16]} Qxa2 {[%emt 0:01:03]} 7. Ra1 {[%emt 0:02:22]} Qb2 {[%emt 0:00:48]} 8. Rb1 {[%emt 0:01:06]} Qa2 {[%emt 0:00:11]} 9. Ra1 {[%emt 0:00:09]} Qb2 {[%emt 0:00:08]} 10. Rb1 {[%emt 0:00:13]} Qa2 {[%emt 0:00:14]} 11. Ra1 {[%emt 1:15:53]} 1/2-1/2